[Event "EYCC Girls-U16 2019"]
[Site "Bratislava"]
[Date "2019.08.08"]
[Round "7.5"]
[White "Sade, Defne"]
[Black "Malicka, Maria"]
[Result "1/2-1/2"]
[ECO "C60"]
[WhiteElo "1897"]
[BlackElo "2115"]
[Annotator "NA"]
[PlyCount "96"]
[EventDate "2019.08.02"]
[EventType "swiss"]
[EventCountry "SVK"]
[SourceTitle "playchess.com"]
[Source "ChessBase"]
[SourceQuality "1"]
[TimeControl "40/5400+30:1800+30"]

1. e4 {[%emt 0:00:00]} e5 {[%emt 0:00:00]} 2. Nf3 {[%emt 0:00:00]} Nc6 {[%emt 0:00:00]} 3. Bb5 {[%emt 0:00:00]} g6 {[%emt 0:00:00]} 4. d4 {[%emt 0:00:20]} exd4 {[%emt 0:00:00]} 5. Bg5 {[%emt 0:00:09]} Be7 {[%emt 0:00:00]} 6. Bxe7 {[%emt 0:00:10]} Qxe7 {[%emt 0:00:00]} 7. Bxc6 {[%emt 0:00:14]} dxc6 {[%emt 0:00:07]} 8. Qxd4 {[%emt 0:00:07]} Nf6 {[%emt 0:00:21]} 9. Nc3 {[%emt 0:00:20]} Bg4 {[%emt 0:00:18]} 10. O-O-O {[%emt 0:02:04]} Bxf3 {[%emt 0:00:48]} 11. gxf3 {[%emt 0:00:08]} O-O {[%emt 0:01:51]} 12. f4 {[%emt 0:03:26]} Rfd8 {[%emt 0:08:09]} 13. Qe3 {[%emt 0:01:03]} b6 {[%emt 0:05:50]} 14. Qf3 {[%emt 0:07:28]} Rxd1+ {[%emt 0:10:13]} 15. Rxd1 {[%emt 0:00:13]} Rd8 {[%emt 0:00:20]} 16. Re1 {[%emt 0:02:14]} b5 {[%emt 0:11:21]} 17. e5 {[%emt 0:09:16]} b4 {[%emt 0:01:42]} 18. Ne4 {[%emt 0:20:12]} Nxe4 {[%emt 0:00:25]} 19. Qxe4 {[%emt 0:00:06]} Qe6 {[%emt 0:13:49]} 20. b3 {[%emt 0:03:50]} c5 {[%emt 0:04:32]} 21. Rd1 {[%emt 0:10:32]} Rxd1+ {[%emt 0:00:07]} 22. Kxd1 {[%emt 0:00:05]} Qh3 {[%emt 0:13:51]} 23. Qe3 {[%emt 0:08:07]} Qxh2 {[%emt 0:00:57]} 24. e6 {[%emt 0:04:52]} Qh1+ {[%emt 0:05:03]} 25. Ke2 {[%emt 0:00:13]} Qh5+ {[%emt 0:00:34]} 26. Ke1 {[%emt 0:00:21]} Qh1+ {[%emt 0:00:09]} 27. Ke2 {[%emt 0:00:11]} Qh5+ {[%emt 0:00:24]} 28. Ke1 {[%emt 0:14:56]} Kf8 {[%emt 0:01:18]} 29. exf7 {[%emt 0:02:17]} Kxf7 {[%emt 0:01:18]} 30. Qe4 {[%emt 0:00:07]} Qf5 {[%emt 0:01:02]} 31. f3 {[%emt 0:00:52]} Qd7 {[%emt 0:05:59]} 32. Kf2 {[%emt 0:03:12]} Qd4+ {[%emt 0:02:56]} 33. Kg3 {[%emt 0:00:18]} h5 {[%emt 0:03:28]} 34. Kh3 {[%emt 0:04:54]} a5 {[%emt 0:03:09]} 35. Kg3 {[%emt 0:00:53]} Kf6 {[%emt 0:02:54]} 36. Kh3 {[%emt 0:00:33]} Qd7+ {[%emt 0:01:28]} 37. Kg3 {[%emt 0:00:16]} Qd6 {[%emt 0:01:16]} 38. Kh3 {[%emt 0:00:31]} c6 {[%emt 0:00:51]} 39. Kh4 {[%emt 0:00:42]} Qd5 {[%emt 0:00:59]} 40. Kh3 {[%emt 0:00:00]} Qe6+ {[%emt 0:00:00]} 41. Kg3 {[%emt 0:00:58]} Qd5 {[%emt 0:10:23]} 42. Kh3 {[%emt 0:01:08]} g5 {[%emt 0:03:14]} 43. fxg5+ {[%emt 0:04:10]} Kxg5 {[%emt 0:00:02]} 44. Qe3+ {[%emt 0:01:11]} Kf5 {[%emt 0:01:05]} 45. Kg2 {[%emt 0:02:54]} Kg6 {[%emt 0:07:55]} 46. Qe8+ {[%emt 0:00:29]} Kg7 {[%emt 0:01:09]} 47. Qe7+ {[%emt 0:00:43]} Kg6 {[%emt 0:00:08]} 48. Qe8+ {[%emt 0:00:07]} Kg7 {[%emt 0:00:09]} 1/2-1/2

[Event "EYCC Girls-U16 2019"]
[Site "Bratislava"]
[Date "2019.08.08"]
[Round "7.6"]
[White "Hryzlova, Sofiia"]
[Black "Afanasieva, Alexandra"]
[Result "1-0"]
[ECO "A00"]
[WhiteElo "1799"]
[BlackElo "2085"]
[Annotator "NA"]
[PlyCount "117"]
[EventDate "2019.08.02"]
[EventType "swiss"]
[EventCountry "SVK"]
[SourceTitle "playchess.com"]
[Source "ChessBase"]
[SourceQuality "1"]
[TimeControl "40/5400+30:1800+30"]

1. e3 {[%emt 0:00:00]} d5 {[%emt 0:00:00]} 2. f4 {[%emt 0:00:00]} Nf6 {[%emt 0:01:43]} 3. Nf3 {[%emt 0:00:18]} g6 {[%emt 0:01:08]} 4. d4 {[%emt 0:00:29]} Bf5 {[%emt 0:04:23]} 5. b3 {[%emt 0:01:47]} Bg7 {[%emt 0:00:46]} 6. Be2 {[%emt 0:01:49]} c5 {[%emt 0:03:37]} 7. O-O {[%emt 0:03:19]} O-O {[%emt 0:02:18]} 8. c4 {[%emt 0:08:51]} cxd4 {[%emt 0:09:37]} 9. exd4 {[%emt 0:01:16]} dxc4 {[%emt 0:05:10]} 10. bxc4 {[%emt 0:00:47]} Nc6 {[%emt 0:00:31]} 11. Bb2 {[%emt 0:07:53]} Qc7 {[%emt 0:12:02]} 12. Qc1 {[%emt 0:05:31]} Nb4 {[%emt 0:05:01]} 13. Ne1 {[%emt 0:04:08]} Rfd8 {[%emt 0:05:19]} 14. Nd2 {[%emt 0:05:15]} Rac8 {[%emt 0:06:49]} 15. Ndf3 {[%emt 0:08:16]} Ne4 {[%emt 0:04:42]} 16. Ne5 {[%emt 0:05:00]} f6 {[%emt 0:02:26]} 17. N5f3 {[%emt 0:01:41]} Bh6 {[%emt 0:02:07]} 18. g3 {[%emt 0:03:57]} Nc6 {[%emt 0:08:26]} 19. Nc2 {[%emt 0:05:08]} Bh3 {[%emt 0:06:16]} 20. Re1 {[%emt 0:03:04]} Nd6 {[%emt 0:01:42]} 21. Ne3 {[%emt 0:02:30]} Nf5 {[%emt 0:02:43]} 22. Nxf5 {[%emt 0:12:14]} Bxf5 {[%emt 0:00:17]} 23. Qc3 {[%emt 0:00:51]} Bg7 {[%emt 0:03:26]} 24. Rac1 {[%emt 0:01:30]} Na5 {[%emt 0:02:16]} 25. Bf1 {[%emt 0:02:40]} b6 {[%emt 0:00:37]} 26. Ba3 {[%emt 0:02:15]} Rd7 {[%emt 0:00:45]} 27. Qe3 {[%emt 0:01:03]} Nb7 {[%emt 0:03:46]} 28. d5 {[%emt 0:04:54]} Nd6 {[%emt 0:04:03]} 29. Nd4 {[%emt 0:00:36]} Bf8 {[%emt 0:01:26]} 30. Nxf5 {[%emt 0:01:57]} Nxf5 {[%emt 0:00:09]} 31. Qe6+ {[%emt 0:00:08]} Kg7 {[%emt 0:00:08]} 32. Bh3 {[%emt 0:00:15]} Rcd8 {[%emt 0:01:04]} 33. Bxf5 {[%emt 0:00:23]} gxf5 {[%emt 0:00:01]} 34. Qxf5 {[%emt 0:00:14]} b5 {[%emt 0:00:53]} 35. d6 {[%emt 0:02:58]} Rxd6 {[%emt 0:00:26]} 36. Bxd6 {[%emt 0:01:04]} Rxd6 {[%emt 0:00:01]} 37. cxb5 {[%emt 0:00:25]} Qa5 {[%emt 0:00:54]} 38. Re2 {[%emt 0:00:54]} Qa3 {[%emt 0:00:47]} 39. Qg4+ {[%emt 0:00:44]} Kf7 {[%emt 0:00:10]} 40. Qh5+ {[%emt 0:00:00]} Kg7 {[%emt 0:00:00]} 41. Rce1 {[%emt 0:01:21]} Rd8 {[%emt 0:03:47]} 42. Qg4+ {[%emt 0:03:45]} Kh8 {[%emt 0:01:29]} 43. Qf5 {[%emt 0:00:43]} Qd6 {[%emt 0:01:37]} 44. Kg2 {[%emt 0:02:36]} Qc7 {[%emt 0:03:55]} 45. Qe4 {[%emt 0:02:05]} Qc5 {[%emt 0:01:56]} 46. a4 {[%emt 0:02:23]} Rd5 {[%emt 0:05:03]} 47. Rc2 {[%emt 0:02:17]} Qd6 {[%emt 0:00:01]} 48. Qe6 {[%emt 0:02:24]} Rd2+ {[%emt 0:00:11]} 49. Rxd2 {[%emt 0:00:06]} Qxd2+ {[%emt 0:00:01]} 50. Re2 {[%emt 0:00:13]} Qb4 {[%emt 0:00:28]} 51. Kh3 {[%emt 0:02:15]} Kg7 {[%emt 0:01:10]} 52. Qg4+ {[%emt 0:02:02]} Kf7 {[%emt 0:00:16]} 53. f5 {[%emt 0:00:17]} Qb1 {[%emt 0:01:10]} 54. Qc4+ {[%emt 0:00:51]} Kg7 {[%emt 0:00:08]} 55. Re4 {[%emt 0:00:25]} h5 {[%emt 0:00:02]} 56. Qe2 {[%emt 0:00:33]} Kh6 {[%emt 0:01:18]} 57. Qf3 {[%emt 0:00:12]} Qc1 {[%emt 0:01:03]} 58. Rh4 {[%emt 0:00:42]} Qg5 {[%emt 0:00:07]} 59. g4 {[%emt 0:00:20]} 1-0

[Event "EYCC Girls-U16 2019"]
[Site "Bratislava"]
[Date "2019.08.08"]
[Round "7.7"]
[White "Kuhar, Larisa"]
[Black "Hercog, Nusa"]
[Result "1-0"]
[ECO "B40"]
[WhiteElo "1894"]
[BlackElo "2053"]
[Annotator "NA"]
[PlyCount "119"]
[EventDate "2019.08.02"]
[EventType "swiss"]
[EventCountry "SVK"]
[SourceTitle "playchess.com"]
[Source "ChessBase"]
[SourceQuality "1"]
[TimeControl "40/5400+30:1800+30"]

1. e4 {[%emt 0:00:00]} c5 {[%emt 0:00:00]} 2. Nf3 {[%emt 0:00:00]} e6 {[%emt 0:00:00]} 3. d4 {[%emt 0:00:00]} cxd4 {[%emt 0:00:00]} 4. Nxd4 {[%emt 0:00:00]} Nf6 {[%emt 0:00:00]} 5. Nc3 {[%emt 0:00:00]} Nc6 {[%emt 0:00:03]} 6. Ndb5 {[%emt 0:00:55]} Bb4 {[%emt 0:00:26]} 7. a3 {[%emt 0:00:53]} Bxc3+ {[%emt 0:00:23]} 8. Nxc3 {[%emt 0:00:07]} d5 {[%emt 0:00:13]} 9. exd5 {[%emt 0:01:04]} exd5 {[%emt 0:00:34]} 10. Bd3 {[%emt 0:03:01]} d4 {[%emt 0:00:32]} 11. Ne2 {[%emt 0:05:09]} O-O {[%emt 0:00:20]} 12. O-O {[%emt 0:00:19]} Bg4 {[%emt 0:00:17]} 13. h3 {[%emt 0:04:30]} Bh5 {[%emt 0:00:21]} 14. Bf4 {[%emt 0:13:47]} Qb6 {[%emt 0:05:49]} 15. Qd2 {[%emt 0:04:17]} Rfe8 {[%emt 0:09:29]} 16. Rab1 {[%emt 0:13:57]} Rad8 {[%emt 0:09:41]} 17. Bh2 {[%emt 0:04:38]} Bg6 {[%emt 0:08:31]} 18. Nf4 {[%emt 0:11:01]} Ne4 {[%emt 0:03:56]} 19. Qd1 {[%emt 0:01:55]} Ne5 {[%emt 0:14:13]} 20. Nxg6 {[%emt 0:10:31]} Nxg6 {[%emt 0:00:19]} 21. Re1 {[%emt 0:00:21]} Nf6 {[%emt 0:07:44]} 22. Bc4 {[%emt 0:07:13]} Rxe1+ {[%emt 0:06:57]} 23. Qxe1 {[%emt 0:00:01]} Re8 {[%emt 0:00:16]} 24. Qb4 {[%emt 0:01:24]} Qc6 {[%emt 0:11:13]} 25. Qb5 {[%emt 0:02:49]} Qe4 {[%emt 0:03:02]} 26. Bd3 {[%emt 0:00:10]} Qe7 {[%emt 0:00:07]} 27. Qc4 {[%emt 0:01:51]} Rd8 {[%emt 0:03:08]} 28. Qc7 {[%emt 0:03:04]} Qxc7 {[%emt 0:00:30]} 29. Bxc7 {[%emt 0:00:02]} Rc8 {[%emt 0:00:49]} 30. Bg3 {[%emt 0:01:33]} Nh5 {[%emt 0:05:01]} 31. Bh2 {[%emt 0:04:22]} Nhf4 {[%emt 0:00:31]} 32. Be4 {[%emt 0:01:45]} b6 {[%emt 0:00:12]} 33. Re1 {[%emt 0:00:27]} h6 {[%emt 0:03:03]} 34. Bf5 {[%emt 0:02:48]} Rc5 {[%emt 0:05:51]} 35. Re8+ {[%emt 0:02:41]} Kh7 {[%emt 0:00:10]} 36. Bxf4 {[%emt 0:00:33]} Rxf5 {[%emt 0:00:03]} 37. Bg3 {[%emt 0:00:02]} Rc5 {[%emt 0:00:23]} 38. Re2 {[%emt 0:00:19]} a6 {[%emt 0:02:50]} 39. Kf1 {[%emt 0:00:50]} d3 {[%emt 0:01:39]} 40. cxd3 {[%emt 0:00:00]} Rc1+ {[%emt 0:00:00]} 41. Re1 {[%emt 0:00:43]} Rc2 {[%emt 0:00:06]} 42. Rd1 {[%emt 0:08:07]} Kg8 {[%emt 0:11:07]} 43. d4 {[%emt 0:04:26]} Kf8 {[%emt 0:00:20]} 44. b4 {[%emt 0:01:07]} Ke7 {[%emt 0:03:06]} 45. Rd3 {[%emt 0:00:45]} Ke6 {[%emt 0:02:25]} 46. d5+ {[%emt 0:00:16]} Kd7 {[%emt 0:00:03]} 47. Ke1 {[%emt 0:02:50]} f6 {[%emt 0:00:42]} 48. Bb8 {[%emt 0:04:23]} Ne5 {[%emt 0:01:16]} 49. Rg3 {[%emt 0:06:55]} g5 {[%emt 0:00:18]} 50. h4 {[%emt 0:00:51]} Rc4 {[%emt 0:02:22]} 51. hxg5 {[%emt 0:00:47]} hxg5 {[%emt 0:00:17]} 52. Bxe5 {[%emt 0:03:53]} Re4+ {[%emt 0:02:29]} 53. Re3 {[%emt 0:00:07]} Rxe5 {[%emt 0:00:07]} 54. Rxe5 {[%emt 0:00:11]} fxe5 {[%emt 0:00:01]} 55. Ke2 {[%emt 0:00:11]} Kd6 {[%emt 0:00:05]} 56. Kf3 {[%emt 0:00:09]} Kxd5 {[%emt 0:00:38]} 57. Kg4 {[%emt 0:00:15]} Kc4 {[%emt 0:01:01]} 58. Kxg5 {[%emt 0:00:08]} Kb3 {[%emt 0:00:05]} 59. Kf5 {[%emt 0:00:12]} Kxa3 {[%emt 0:00:02]} 60. g4 {[%emt 0:00:12]} 1-0

[Event "EYCC Girls-U16 2019"]
[Site "Bratislava"]
[Date "2019.08.08"]
[Round "7.8"]
[White "Juhasz, Judit"]
[Black "Guillo Longares, Cecilia"]
[Result "1-0"]
[ECO "B35"]
[WhiteElo "2050"]
[BlackElo "1916"]
[Annotator "NA"]
[PlyCount "125"]
[EventDate "2019.08.02"]
[EventType "swiss"]
[EventCountry "SVK"]
[SourceTitle "playchess.com"]
[Source "ChessBase"]
[SourceQuality "1"]
[TimeControl "40/5400+30:1800+30"]

1. e4 {[%emt 0:00:00]} c5 {[%emt 0:00:00]} 2. Nf3 {[%emt 0:00:00]} Nc6 {[%emt 0:00:00]} 3. d4 {[%emt 0:00:00]} cxd4 {[%emt 0:00:00]} 4. Nxd4 {[%emt 0:00:00]} g6 {[%emt 0:00:00]} 5. Nc3 {[%emt 0:00:00]} Bg7 {[%emt 0:00:00]} 6. Be3 {[%emt 0:00:03]} Nf6 {[%emt 0:00:00]} 7. Bc4 {[%emt 0:00:08]} O-O {[%emt 0:00:06]} 8. Bb3 {[%emt 0:00:10]} a5 {[%emt 0:00:09]} 9. O-O {[%emt 0:01:00]} d6 {[%emt 0:00:28]} 10. f3 {[%emt 0:02:02]} Nd7 {[%emt 0:02:43]} 11. Bxf7+ {[%emt 0:07:23]} Rxf7 {[%emt 0:00:39]} 12. Ne6 {[%emt 0:00:07]} Qe8 {[%emt 0:00:03]} 13. Nd5 {[%emt 0:03:18]} Nde5 {[%emt 0:02:54]} 14. Nec7 {[%emt 0:00:38]} Qd8 {[%emt 0:00:29]} 15. Nxa8 {[%emt 0:00:29]} Nc4 {[%emt 0:01:40]} 16. Bf2 {[%emt 0:02:41]} Nxb2 {[%emt 0:01:42]} 17. Qe2 {[%emt 0:08:19]} Na4 {[%emt 0:02:13]} 18. Rab1 {[%emt 0:05:13]} Nd4 {[%emt 0:11:57]} 19. Qc4 {[%emt 0:07:18]} b5 {[%emt 0:03:32]} 20. Nxe7+ {[%emt 0:11:03]} Qxe7 {[%emt 0:00:47]} 21. Qxc8+ {[%emt 0:00:09]} Rf8 {[%emt 0:00:52]} 22. Qa6 {[%emt 0:00:34]} Qd8 {[%emt 0:04:03]} 23. Rxb5 {[%emt 0:08:08]} Qxa8 {[%emt 0:01:34]} 24. Rxa5 {[%emt 0:01:47]} Qxa6 {[%emt 0:00:23]} 25. Rxa6 {[%emt 0:00:04]} Nc3 {[%emt 0:00:17]} 26. Rxd6 {[%emt 0:02:28]} Nxc2 {[%emt 0:00:18]} 27. Rd2 {[%emt 0:04:22]} Na3 {[%emt 0:01:38]} 28. Bc5 {[%emt 0:04:42]} Ra8 {[%emt 0:00:20]} 29. Rd7 {[%emt 0:03:41]} Nc2 {[%emt 0:03:40]} 30. a3 {[%emt 0:01:07]} Bh6 {[%emt 0:01:21]} 31. Kf2 {[%emt 0:04:16]} Nxa3 {[%emt 0:01:36]} 32. Ra1 {[%emt 0:01:41]} Ncb5 {[%emt 0:00:54]} 33. Rb7 {[%emt 0:02:57]} Bg7 {[%emt 0:02:31]} 34. Rd1 {[%emt 0:04:06]} Be5 {[%emt 0:28:57]} 35. Rd5 {[%emt 0:05:50]} Nc4 {[%emt 0:12:13]} 36. Rxe5 {[%emt 0:06:05]} Ra2+ {[%emt 0:01:08]} 37. Kg3 {[%emt 0:00:07]} Nxe5 {[%emt 0:00:10]} 38. Rxb5 {[%emt 0:00:07]} Nd3 {[%emt 0:01:01]} 39. Bd4 {[%emt 0:01:40]} h5 {[%emt 0:03:02]} 40. Rb8+ {[%emt 0:00:00]} Kf7 {[%emt 0:00:00]} 41. Rb7+ {[%emt 0:02:03]} Ke8 {[%emt 0:03:07]} 42. Rb3 {[%emt 0:05:32]} h4+ {[%emt 0:05:30]} 43. Kxh4 {[%emt 0:02:34]} Nf4 {[%emt 0:00:11]} 44. Rb2 {[%emt 0:01:23]} Nxg2+ {[%emt 0:01:21]} 45. Kg3 {[%emt 0:00:23]} Rxb2 {[%emt 0:00:26]} 46. Bxb2 {[%emt 0:00:01]} Ne1 {[%emt 0:01:51]} 47. h4 {[%emt 0:01:03]} Kf7 {[%emt 0:01:44]} 48. Kg4 {[%emt 0:00:42]} Nd3 {[%emt 0:05:04]} 49. Bd4 {[%emt 0:00:14]} Nb4 {[%emt 0:01:19]} 50. h5 {[%emt 0:00:37]} gxh5+ {[%emt 0:01:26]} 51. Kxh5 {[%emt 0:00:06]} Nc6 {[%emt 0:00:05]} 52. Bc3 {[%emt 0:00:10]} Ne7 {[%emt 0:02:57]} 53. f4 {[%emt 0:00:29]} Ke6 {[%emt 0:01:32]} 54. Kg5 {[%emt 0:00:34]} Nc8 {[%emt 0:00:54]} 55. f5+ {[%emt 0:00:30]} Kf7 {[%emt 0:00:08]} 56. e5 {[%emt 0:00:34]} Nb6 {[%emt 0:00:29]} 57. e6+ {[%emt 0:00:15]} Ke8 {[%emt 0:00:25]} 58. f6 {[%emt 0:00:23]} Nd5 {[%emt 0:00:10]} 59. f7+ {[%emt 0:00:44]} Kf8 {[%emt 0:00:40]} 60. Bd4 {[%emt 0:00:50]} Ne7 {[%emt 0:01:43]} 61. Bc5 {[%emt 0:00:49]} Kg7 {[%emt 0:00:05]} 62. Bxe7 {[%emt 0:00:05]} Kh7 {[%emt 0:00:09]} 63. Kf4 {[%emt 0:00:09]} 1-0

[Event "EYCC Girls-U16 2019"]
[Site "Bratislava"]
[Date "2019.08.08"]
[Round "7.9"]
[White "Adamczyk, Zuzanna"]
[Black "Dylag, Emilia"]
[Result "0-1"]
[ECO "B92"]
[WhiteElo "1900"]
[BlackElo "2099"]
[Annotator "NA"]
[PlyCount "84"]
[EventDate "2019.08.02"]
[EventType "swiss"]
[EventCountry "SVK"]
[SourceTitle "playchess.com"]
[Source "ChessBase"]
[SourceQuality "1"]
[TimeControl "40/5400+30:1800+30"]

1. e4 {[%emt 0:00:00]} c5 {[%emt 0:00:00]} 2. Nf3 {[%emt 0:00:00]} d6 {[%emt 0:00:00]} 3. d4 {[%emt 0:00:11]} cxd4 {[%emt 0:00:12]} 4. Nxd4 {[%emt 0:00:14]} Nf6 {[%emt 0:00:18]} 5. Nc3 {[%emt 0:00:33]} a6 6. Be2 {[%emt 0:00:45]} e5 {[%emt 0:00:34]} 7. Nf3 {[%emt 0:00:29]} h6 {[%emt 0:00:09]} 8. Nd2 {[%emt 0:01:23]} Be6 9. Nc4 {[%emt 0:13:55]} b5 {[%emt 0:06:08]} 10. Ne3 {[%emt 0:03:43]} Nbd7 {[%emt 0:02:28]} 11. a3 {[%emt 0:07:36]} Nb6 {[%emt 0:02:51]} 12. Bf3 {[%emt 0:06:37]} g6 {[%emt 0:08:26]} 13. b3 {[%emt 0:09:32]} Rc8 {[%emt 0:02:31]} 14. Bb2 {[%emt 0:01:09]} Bg7 {[%emt 0:03:43]} 15. Qd2 {[%emt 0:07:42]} O-O {[%emt 0:04:48]} 16. O-O {[%emt 0:02:46]} Qc7 {[%emt 0:07:20]} 17. Rfd1 {[%emt 0:09:59]} Rfd8 {[%emt 0:01:00]} 18. Qe2 {[%emt 0:03:23]} h5 {[%emt 0:04:57]} 19. g3 {[%emt 0:06:35]} Bh6 {[%emt 0:04:28]} 20. Rac1 {[%emt 0:01:36]} Qc5 {[%emt 0:08:51]} 21. b4 {[%emt 0:09:30]} Qc7 {[%emt 0:02:16]} 22. Rb1 {[%emt 0:02:51]} Bxe3 {[%emt 0:04:35]} 23. fxe3 {[%emt 0:01:04]} Nc4 {[%emt 0:04:22]} 24. Nd5 {[%emt 0:03:03]} Bxd5 {[%emt 0:01:47]} 25. exd5 {[%emt 0:00:09]} Nxb2 {[%emt 0:00:45]} 26. Rxb2 {[%emt 0:00:04]} Qc3 {[%emt 0:01:30]} 27. Ra2 {[%emt 0:00:19]} e4 {[%emt 0:03:52]} 28. Bg2 {[%emt 0:00:38]} Rc4 {[%emt 0:07:34]} 29. h3 {[%emt 0:01:46]} Qe5 {[%emt 0:00:47]} 30. a4 {[%emt 0:04:17]} Qxg3 {[%emt 0:04:24]} 31. axb5 {[%emt 0:00:45]} axb5 {[%emt 0:00:03]} 32. Ra7 {[%emt 0:02:00]} Rdc8 {[%emt 0:00:32]} 33. Rc1 {[%emt 0:01:02]} Nxd5 {[%emt 0:01:25]} 34. Qf1 {[%emt 0:00:39]} f5 {[%emt 0:00:37]} 35. Rd1 {[%emt 0:00:40]} Qxe3+ {[%emt 0:00:59]} 36. Kh1 {[%emt 0:00:19]} Qxa7 {[%emt 0:00:13]} 37. Rxd5 {[%emt 0:00:16]} Rxc2 {[%emt 0:00:43]} 38. Qxb5 {[%emt 0:00:46]} Qf2 {[%emt 0:00:15]} 39. Qf1 {[%emt 0:00:25]} Qxf1+ {[%emt 0:00:50]} 40. Bxf1 {[%emt 0:00:00]} Rc1 {[%emt 0:00:00]} 41. Kg1 {[%emt 0:01:02]} Rb1 {[%emt 0:01:22]} 42. Kf2 {[%emt 0:00:25]} Rc2+ {[%emt 0:00:12]} 0-1

[Event "EYCC Girls-U16 2019"]
[Site "Bratislava"]
[Date "2019.08.08"]
[Round "7.10"]
[White "Gombocz, Zsofia"]
[Black "Czarnecka, Lidia"]
[Result "1/2-1/2"]
[ECO "B40"]
[WhiteElo "1981"]
[BlackElo "1731"]
[Annotator "NA"]
[PlyCount "40"]
[EventDate "2019.08.02"]
[EventType "swiss"]
[EventCountry "SVK"]
[SourceTitle "playchess.com"]
[Source "ChessBase"]
[SourceQuality "1"]
[TimeControl "40/5400+30:1800+30"]

1. e4 {[%emt 0:00:00]} c5 {[%emt 0:00:00]} 2. Nf3 {[%emt 0:00:00]} e6 {[%emt 0:00:46]} 3. c4 {[%emt 0:00:00]} Nc6 {[%emt 0:00:51]} 4. Nc3 {[%emt 0:00:09]} Nf6 {[%emt 0:00:43]} 5. Be2 {[%emt 0:00:11]} d5 {[%emt 0:00:31]} 6. exd5 {[%emt 0:00:14]} exd5 {[%emt 0:00:12]} 7. d4 {[%emt 0:00:06]} Be7 {[%emt 0:02:29]} 8. O-O {[%emt 0:05:32]} O-O {[%emt 0:00:47]} 9. Bg5 {[%emt 0:04:24]} cxd4 {[%emt 0:15:39]} 10. Nxd4 {[%emt 0:00:33]} Nxd4 {[%emt 0:00:55]} 11. Qxd4 {[%emt 0:00:12]} dxc4 {[%emt 0:00:12]} 12. Qxd8 {[%emt 0:09:42]} Rxd8 {[%emt 0:00:12]} 13. Bxc4 {[%emt 0:00:24]} Bf5 {[%emt 0:01:01]} 14. Rfe1 {[%emt 0:03:03]} Kf8 {[%emt 0:03:32]} 15. Re5 {[%emt 0:08:31]} Bd3 {[%emt 0:02:21]} 16. Bxd3 {[%emt 0:11:00]} Rxd3 {[%emt 0:01:44]} 17. Rae1 {[%emt 0:00:24]} Rd7 {[%emt 0:02:29]} 18. h3 {[%emt 0:06:55]} h6 {[%emt 0:00:38]} 19. Be3 {[%emt 0:04:56]} b6 {[%emt 0:03:10]} 20. Rf5 {[%emt 0:05:23]} Rad8 {[%emt 0:02:52]} 1/2-1/2

[Event "EYCC Girls-U16 2019"]
[Site "Bratislava"]
[Date "2019.08.08"]
[Round "7.11"]
[White "Marcinczyk, Monika"]
[Black "Yedigaryan, Asya"]
[Result "0-1"]
[ECO "B13"]
[WhiteElo "1960"]
[BlackElo "1583"]
[Annotator "NA"]
[PlyCount "98"]
[EventDate "2019.08.02"]
[EventType "swiss"]
[EventCountry "SVK"]
[SourceTitle "playchess.com"]
[Source "ChessBase"]
[SourceQuality "1"]
[TimeControl "40/5400+30:1800+30"]

1. e4 {[%emt 0:00:00]} c6 {[%emt 0:00:00]} 2. d4 {[%emt 0:00:00]} d5 {[%emt 0:00:00]} 3. exd5 {[%emt 0:00:00]} cxd5 {[%emt 0:00:00]} 4. Bd3 {[%emt 0:00:00]} Nc6 {[%emt 0:00:00]} 5. c3 {[%emt 0:00:01]} Qc7 {[%emt 0:00:00]} 6. Ne2 {[%emt 0:00:07]} Bg4 {[%emt 0:00:09]} 7. O-O {[%emt 0:00:08]} e6 {[%emt 0:00:24]} 8. Qe1 {[%emt 0:00:08]} Be7 {[%emt 0:00:49]} 9. Bf4 {[%emt 0:13:17]} Qb6 {[%emt 0:01:49]} 10. b3 {[%emt 0:03:19]} Nf6 {[%emt 0:01:43]} 11. Ng3 {[%emt 0:02:05]} Nh5 {[%emt 0:01:12]} 12. Nxh5 {[%emt 0:01:08]} Bxh5 {[%emt 0:00:05]} 13. Nd2 {[%emt 0:01:41]} O-O {[%emt 0:02:21]} 14. Qe3 {[%emt 0:06:02]} Bg6 {[%emt 0:03:03]} 15. Bxg6 {[%emt 0:04:11]} hxg6 {[%emt 0:00:08]} 16. Nf3 {[%emt 0:03:01]} Rac8 {[%emt 0:06:32]} 17. h4 {[%emt 0:14:44]} Ba3 {[%emt 0:23:50]} 18. Rab1 {[%emt 0:08:00]} Be7 {[%emt 0:11:39]} 19. c4 {[%emt 0:08:27]} Qd8 {[%emt 0:05:41]} 20. c5 {[%emt 0:04:45]} Bxh4 {[%emt 0:04:40]} 21. g4 {[%emt 0:02:10]} Be7 {[%emt 0:03:02]} 22. b4 {[%emt 0:03:43]} Qd7 {[%emt 0:09:40]} 23. b5 {[%emt 0:00:28]} Nd8 {[%emt 0:00:06]} 24. Ne5 {[%emt 0:04:37]} Qe8 {[%emt 0:00:16]} 25. Kg2 {[%emt 0:00:41]} f6 {[%emt 0:00:39]} 26. Nd3 {[%emt 0:00:13]} g5 {[%emt 0:03:35]} 27. Bh2 {[%emt 0:02:38]} Qg6 {[%emt 0:01:50]} 28. Rbe1 {[%emt 0:01:46]} Qe8 {[%emt 0:04:25]} 29. a4 {[%emt 0:01:14]} a6 {[%emt 0:04:08]} 30. Rb1 {[%emt 0:02:19]} axb5 {[%emt 0:00:19]} 31. axb5 {[%emt 0:00:01]} Qd7 {[%emt 0:00:30]} 32. Qh3 {[%emt 0:01:14]} Nf7 {[%emt 0:01:09]} 33. f4 {[%emt 0:02:07]} g6 {[%emt 0:05:48]} 34. Rfe1 {[%emt 0:03:28]} Kg7 {[%emt 0:00:52]} 35. Nf2 {[%emt 0:03:32]} gxf4 {[%emt 0:01:26]} 36. Bxf4 {[%emt 0:00:19]} e5 {[%emt 0:00:44]} 37. dxe5 {[%emt 0:00:35]} fxe5 {[%emt 0:00:04]} 38. Bxe5+ {[%emt 0:00:58]} Nxe5 {[%emt 0:00:03]} 39. Rxe5 {[%emt 0:00:18]} Bf6 {[%emt 0:00:04]} 40. Re2 {[%emt 0:00:00]} Rxc5 {[%emt 0:00:00]} 41. Rh1 {[%emt 0:08:04]} Kg8 {[%emt 0:05:48]} 42. Re6 {[%emt 0:08:12]} Rc3 {[%emt 0:07:15]} 43. Nd3 {[%emt 0:07:52]} Rc2+ {[%emt 0:08:41]} 44. Nf2 {[%emt 0:00:19]} Rxf2+ {[%emt 0:01:41]} 45. Kxf2 {[%emt 0:00:39]} Bh4+ {[%emt 0:00:09]} 46. Kg1 {[%emt 0:00:57]} Qxe6 {[%emt 0:00:07]} 47. Qxh4 {[%emt 0:00:15]} Qe3+ {[%emt 0:00:09]} 48. Kg2 {[%emt 0:00:10]} Qe2+ {[%emt 0:00:07]} 49. Kg3 {[%emt 0:00:16]} Rf3# {[%emt 0:00:05]} 0-1